fUSD/lending_fUSD_20260605
["ID","MTS","AMOUNT","RATE_DAILY","PERIOD"]
[424174717,1780627256000,152.0,0.00029937,120]
[424174716,1780627256000,152.0,0.00029937,120]
[424174715,1780627256000,-175.47,0.0001094,2]
[424174725,1780627310000,-900.69605103,0.00011107,2]
[424174730,1780627325000,-900.69605103,0.00011107,2]
[424174731,1780627339000,-300.0,0.00011107,2]
[424174738,1780627359000,-330.59583191,0.00011107,2]
[424174740,1780627375000,-28.33206603,0.00011107,2]
[424174742,1780627428000,-215.77576141,0.00011116,2]
[424174749,1780627514000,175.47,8.775e-05,2]
[424174751,1780627542000,152.0,0.00011204,7]
[424174753,1780627543000,152.0,0.00011204,7]
[424174752,1780627543000,152.0,0.00011204,7]
[424174755,1780627628000,600.0,0.000117,4]
[424174756,1780627630000,1200.0,0.000118,4]
[424174757,1780627632000,1900.0,0.000119,4]
[424174758,1780627634000,2500.0,0.000128,4]
[424174759,1780627636000,3100.0,0.000129,4]
[424174786,1780627831000,-312.78246649,0.00010469,2]
[424174807,1780627831000,-500.0,0.00011098,2]
[424174805,1780627831000,-500.0,0.00011098,2]
[424174804,1780627831000,-150.0,0.00011097,2]
[424174803,1780627831000,-500.0,0.0001103,2]
[424174801,1780627831000,-852.5437859,0.00010907,2]
[424174802,1780627831000,-150.0,0.00010959,2]
[424174799,1780627831000,-298.46,0.00010862,2]
[424174800,1780627831000,-1560.56,0.00010863,2]
[424174788,1780627831000,-236.44,0.00010551,2]
[424174798,1780627831000,-4962.56,0.00010839,2]
[424174795,1780627831000,-426.49816462,0.00010784,2]
[424174793,1780627831000,-2000.0,0.00010736,2]
[424174794,1780627831000,-564.14,0.00010736,2]
[424174792,1780627831000,-872.0,0.00010735,2]
[424174790,1780627831000,-849.99999999,0.00010596,2]
[424174789,1780627831000,-278.12246649,0.00010596,2]
[424174791,1780627831000,-339.74753352,0.00010596,2]
[424174787,1780627831000,-1030.43753351,0.00010469,2]
[424174806,1780627831000,-500.0,0.00011098,2]
[424174797,1780627831000,-2191.53,0.00010803,2]
[424174796,1780627831000,-5813.25,0.00010785,2]
[424174809,1780627831000,-500.0,0.00011098,2]
[424174808,1780627831000,-500.0,0.00011098,2]
[424174828,1780627831000,-500.0,0.00011098,2]
[424174830,1780627831000,-500.0,0.00011098,2]
[424174829,1780627831000,-500.0,0.00011098,2]
[424174826,1780627831000,-500.0,0.00011098,2]
[424174825,1780627831000,-500.0,0.00011098,2]
[424174824,1780627831000,-500.0,0.00011098,2]
[424174823,1780627831000,-500.0,0.00011098,2]
[424174822,1780627831000,-500.0,0.00011098,2]
[424174817,1780627831000,-500.0,0.00011098,2]
[424174827,1780627831000,-500.0,0.00011098,2]
[424174816,1780627831000,-500.0,0.00011098,2]
[424174814,1780627831000,-500.0,0.00011098,2]
[424174813,1780627831000,-500.0,0.00011098,2]
[424174820,1780627831000,-500.0,0.00011098,2]
[424174812,1780627831000,-500.0,0.00011098,2]
[424174811,1780627831000,-500.0,0.00011098,2]
[424174810,1780627831000,-500.0,0.00011098,2]
[424174819,1780627831000,-500.0,0.00011098,2]
[424174818,1780627831000,-500.0,0.00011098,2]
[424174815,1780627831000,-500.0,0.00011098,2]
[424174821,1780627831000,-500.0,0.00011098,2]
[424174865,1780627832000,-500.0,0.00011098,2]
[424174877,1780627832000,-500.0,0.00011155,2]
[424174859,1780627832000,-500.0,0.00011098,2]
[424174857,1780627832000,-500.0,0.00011098,2]
[424174871,1780627832000,-200.0,0.00011143,2]
[424174863,1780627832000,-500.0,0.00011098,2]
[424174861,1780627832000,-500.0,0.00011098,2]
[424174868,1780627832000,-1000.0,0.00011101,2]
[424174873,1780627832000,-2066.38,0.00011154,2]
[424174875,1780627832000,-831.12498415,0.00011155,2]
[424174855,1780627832000,-150.0,0.00011098,2]
[424174866,1780627832000,-500.0,0.00011098,2]
[424174840,1780627832000,-500.0,0.00011098,2]
[424174834,1780627832000,-500.0,0.00011098,2]
[424174839,1780627832000,-191.52151437,0.00011098,2]
[424174853,1780627832000,-500.0,0.00011098,2]
[424174838,1780627832000,-500.0,0.00011098,2]
[424174849,1780627832000,-500.0,0.00011098,2]
[424174850,1780627832000,-500.0,0.00011098,2]
[424174846,1780627832000,-500.0,0.00011098,2]
[424174836,1780627832000,-500.0,0.00011098,2]
[424174842,1780627832000,-500.0,0.00011098,2]
[424174844,1780627832000,-500.0,0.00011098,2]
[424174831,1780627832000,-500.0,0.00011098,2]
[424174833,1780627832000,-500.0,0.00011098,2]
[424174832,1780627832000,-500.0,0.00011098,2]
[424174841,1780627832000,-500.0,0.00011098,2]
[424174889,1780627832000,-499.99,0.00011281,2]
[424174894,1780627832000,-150.99,0.00011281,2]
[424174887,1780627832000,-17074.51,0.00011281,2]
[424174913,1780627832000,-774.46618529,0.00011755,2]
[424174911,1780627832000,-281.983,0.00011755,2]
[424174912,1780627832000,-715.49855014,0.00011755,2]
[424174910,1780627832000,-377.91139438,0.00011755,2]
[424174907,1780627832000,-5109.78106113,0.00011755,2]
[424174904,1780627832000,-1633.49536165,0.00011755,2]
[424174908,1780627832000,-2630.59058829,0.00011755,2]
[424174909,1780627832000,-7332.0,0.00011755,2]
[424174905,1780627832000,-251.93596117,0.00011755,2]
[424174906,1780627832000,-492.85471857,0.00011755,2]
[424174903,1780627832000,-325.36101861,0.00011755,2]
[424174899,1780627832000,-160.55,0.00011663,2]
[424174902,1780627832000,-107977.04806265,0.00011755,2]
[424174901,1780627832000,-3052.47766982,0.0001171,2]
[424174900,1780627832000,-5260.44445265,0.0001171,2]
[424174898,1780627832000,-150.0,0.00011425,2]
[424174897,1780627832000,-152.0,0.00011287,2]
[424174896,1780627832000,-299.99,0.00011281,2]
[424174893,1780627832000,-4598.96295774,0.00011281,2]
[424174895,1780627832000,-9999.99,0.00011281,2]
[424174892,1780627832000,-5401.02704226,0.00011281,2]
[424174891,1780627832000,-9999.99,0.00011281,2]
[424174890,1780627832000,-353.69,0.00011281,2]
[424174882,1780627832000,-8469.68730347,0.00011281,2]
[424174880,1780627832000,-1530.30269653,0.00011281,2]
[424174886,1780627832000,-999.99,0.00011281,2]
[424174884,1780627832000,-24999.99,0.00011281,2]
[424174878,1780627832000,-4999.99,0.00011281,2]
[424174943,1780627837000,-292.11280142,0.00011755,2]
[424174941,1780627837000,-6157.50462692,0.00011755,2]
[424174944,1780627837000,-1530.77808329,0.00011755,2]
[424174942,1780627837000,-227795.28986199,0.00011755,2]
[424174972,1780627838000,-10000.0,0.00012528,2]
[424174974,1780627838000,-500.0,0.00012692,2]
[424174978,1780627838000,-213.00670346,0.00012779,2]
[424174975,1780627838000,-152.0,0.00012725,2]
[424174979,1780627838000,-219.18244469,0.00012779,2]
[424174976,1780627838000,-152.0,0.00012739,2]
[424174977,1780627838000,-152.0,0.00012739,2]
[424174980,1780627838000,-4000.0,0.00012979,2]
[424174981,1780627838000,-33256.6326,0.0001314,2]
[424174983,1780627838000,-4000.0,0.0001328,2]
[424174994,1780627838000,-500.0,0.00013698,2]
[424174982,1780627838000,-2000.0,0.0001314,2]
[424174990,1780627838000,-500.0,0.00013698,2]
[424174986,1780627838000,-500.0,0.00013698,2]
[424174992,1780627838000,-500.0,0.00013698,2]
[424174985,1780627838000,-2000.0,0.0001342,2]
[424174988,1780627838000,-500.0,0.00013698,2]
[424174984,1780627838000,-433.0,0.00013305,2]
[424174991,1780627838000,-500.0,0.00013698,2]
[424174989,1780627838000,-500.0,0.00013698,2]
[424174996,1780627838000,-500.0,0.00013698,2]
[424175006,1780627838000,-500.0,0.00013698,2]
[424175008,1780627838000,-500.0,0.00013698,2]
[424175000,1780627838000,-500.0,0.00013698,2]
[424174987,1780627838000,-502.30031502,0.00013698,2]
[424174973,1780627838000,-4000.0,0.00012677,2]
[424174955,1780627838000,-592.42969906,0.00011953,2]
[424174965,1780627838000,-255.0,0.00012151,2]
[424174945,1780627838000,-500.0,0.00011755,2]
[424174947,1780627838000,-1135405.83578951,0.00011755,2]
[424174948,1780627838000,-250.0,0.0001181,2]
[424174946,1780627838000,-415.55293499,0.00011755,2]
[424174951,1780627838000,-6817.3354,0.00011855,2]
[424174950,1780627838000,-4000.0,0.00011855,2]
[424174949,1780627838000,-2500.0,0.00011855,2]
[424174952,1780627838000,-1129.18532641,0.00011864,2]
[424174953,1780627838000,-197.20505446,0.00011888,2]
[424174954,1780627838000,-629.10697661,0.00011888,2]
[424174956,1780627838000,-858.64,0.00011988,2]
[424175010,1780627838000,-338.87344356,0.00013698,2]
[424174957,1780627838000,-751.14,0.00011988,2]
[424174958,1780627838000,-2000.0,0.00011988,2]
[424174959,1780627838000,-1708.43,0.00011988,2]
[424174960,1780627838000,-407.59,0.00011988,2]
[424174962,1780627838000,-2000.0,0.00012078,2]
[424174968,1780627838000,-1277.07,0.0001224,2]
[424174961,1780627838000,-4000.0,0.00012073,2]
[424174971,1780627838000,-4000.0,0.00012375,2]
[424174966,1780627838000,-365.0,0.0001224,2]
[424174969,1780627838000,-1295.58,0.0001224,2]
[424174963,1780627838000,-160.0,0.00012112,2]
[424174964,1780627838000,-250.0,0.00012133,2]
[424174970,1780627838000,-161.15,0.00012329,2]
[424174967,1780627838000,-501.56,0.0001224,2]
[424175002,1780627838000,-500.0,0.00013698,2]
[424175014,1780627838000,-500.0,0.00013698,2]
[424175004,1780627838000,-500.0,0.00013698,2]
[424175056,1780627838000,-500.0,0.00013698,2]
[424175067,1780627838000,-500.0,0.00013698,2]
[424175065,1780627838000,-500.0,0.00013698,2]
[424175058,1780627838000,-234.27058828,0.00013698,2]
[424175063,1780627838000,-500.0,0.00013698,2]
[424175069,1780627838000,-500.0,0.00013698,2]
[424175075,1780627838000,-500.0,0.00013698,2]
[424175061,1780627838000,-500.0,0.00013698,2]
[424175071,1780627838000,-500.0,0.00013698,2]
[424175073,1780627838000,-500.0,0.00013698,2]
[424175077,1780627838000,-500.0,0.00013698,2]
[424175080,1780627838000,-500.0,0.00013698,2]
[424175090,1780627838000,-500.0,0.00013698,2]
[424175098,1780627838000,-500.0,0.00013698,2]
[424175092,1780627838000,-500.0,0.00013698,2]
[424175082,1780627838000,-500.0,0.00013698,2]
[424175096,1780627838000,-500.0,0.00013698,2]
[424175094,1780627838000,-500.0,0.00013698,2]
[424174998,1780627838000,-500.0,0.00013698,2]
[424175100,1780627838000,-500.0,0.00013698,2]
[424175088,1780627838000,-500.0,0.00013698,2]
[424175102,1780627838000,-500.0,0.00013698,2]
[424175084,1780627838000,-500.0,0.00013698,2]
[424175105,1780627838000,-500.0,0.00013698,2]
[424175107,1780627838000,-500.0,0.00013698,2]
[424175054,1780627838000,-500.0,0.00013698,2]
[424175037,1780627838000,-500.0,0.00013698,2]
[424175086,1780627838000,-500.0,0.00013698,2]
[424175033,1780627838000,-500.0,0.00013698,2]
[424175052,1780627838000,-500.0,0.00013698,2]
[424175012,1780627838000,-500.0,0.00013698,2]
[424175011,1780627838000,-500.0,0.00013698,2]
[424175013,1780627838000,-219.99240915,0.00013698,2]
[424175017,1780627838000,-500.0,0.00013698,2]
[424175018,1780627838000,-500.0,0.00013698,2]
[424175024,1780627838000,-500.0,0.00013698,2]
[424175025,1780627838000,-500.0,0.00013698,2]
[424175027,1780627838000,-500.0,0.00013698,2]
[424175016,1780627838000,-500.0,0.00013698,2]
[424175021,1780627838000,-315.44845231,0.00013698,2]
[424175022,1780627838000,-500.0,0.00013698,2]
[424175020,1780627838000,-500.0,0.00013698,2]
[424175015,1780627838000,-500.0,0.00013698,2]
[424175023,1780627838000,-500.0,0.00013698,2]
[424175031,1780627838000,-500.0,0.00013698,2]
[424175019,1780627838000,-500.0,0.00013698,2]
[424175046,1780627838000,-500.0,0.00013698,2]
[424175035,1780627838000,-400.71550208,0.00013698,2]
[424175048,1780627838000,-500.0,0.00013698,2]
[424175029,1780627838000,-500.0,0.00013698,2]
[424175028,1780627838000,-500.0,0.00013698,2]
[424175050,1780627838000,-500.0,0.00013698,2]
[424175041,1780627838000,-500.0,0.00013698,2]
[424175039,1780627838000,-500.0,0.00013698,2]
[424175026,1780627838000,-500.0,0.00013698,2]
[424175043,1780627838000,-470.41009925,0.00013698,2]
[424175134,1780627839000,-1927.85,0.00013699,2]
[424175142,1780627839000,-166.66,0.00014384,2]
[424175133,1780627839000,-200.0,0.00013699,2]
[424175143,1780627839000,-629.1069766,0.00014441,2]
[424175135,1780627839000,-166.66,0.00013836,2]
[424175137,1780627839000,-166.66,0.00013973,2]
[424175141,1780627839000,-166.66,0.00014247,2]
[424175139,1780627839000,-166.66,0.00014004,2]
[424175138,1780627839000,-250.0,0.00014,2]
[424175144,1780627839000,-166.66,0.00014466,2]
[424175136,1780627839000,-250.0,0.00013941,2]
[424175155,1780627839000,-501.98780834,0.00015837,2]
[424175145,1780627839000,-185.96,0.000147,2]
[424175148,1780627839000,-166.66,0.00014928,2]
[424175154,1780627839000,-1555.5,0.00015674,2]
[424175147,1780627839000,-692.97928706,0.000149,2]
[424175150,1780627839000,-871.88,0.00015068,2]
[424175132,1780627839000,-2500.0,0.00013699,2]
[424175140,1780627839000,-166.66,0.0001411,2]
[424175130,1780627839000,-518.10403609,0.00013698,2]
[424175117,1780627839000,-500.0,0.00013698,2]
[424175126,1780627839000,-500.0,0.00013698,2]
[424175149,1780627839000,-564.14,0.00015031,2]
[424175115,1780627839000,-500.0,0.00013698,2]
[424175120,1780627839000,-500.0,0.00013698,2]
[424175116,1780627839000,-500.0,0.00013698,2]
[424175119,1780627839000,-500.0,0.00013698,2]
[424175108,1780627839000,-500.0,0.00013698,2]
[424175121,1780627839000,-500.0,0.00013698,2]
[424175118,1780627839000,-500.0,0.00013698,2]
[424175128,1780627839000,-562.28097781,0.00013698,2]
[424175114,1780627839000,-500.0,0.00013698,2]
[424175110,1780627839000,-500.0,0.00013698,2]
[424175123,1780627839000,-500.0,0.00013698,2]
[424175122,1780627839000,-500.0,0.00013698,2]
[424175124,1780627839000,-500.0,0.00013698,2]
[424175125,1780627839000,-500.0,0.00013698,2]
[424175131,1780627839000,-166.66,0.00013699,2]
[424175127,1780627839000,-500.0,0.00013698,2]
[424175129,1780627839000,-500.0,0.00013698,2]
[424175112,1780627839000,-500.0,0.00013698,2]
[424175146,1780627839000,-2000.0,0.00014762,2]
[424175192,1780627839000,-164.92121343,0.000184,2]
[424175153,1780627839000,-8312.92212241,0.00015571,2]
[424175180,1780627839000,-186.847102,0.00018046,2]
[424175179,1780627839000,-350.0,0.00018,2]
[424175181,1780627839000,-214.543039,0.0001813,2]
[424175183,1780627839000,-698.65233711,0.000182,2]
[424175191,1780627839000,-698.65233711,0.000184,2]
[424175184,1780627839000,-164.92121343,0.000182,2]
[424175188,1780627839000,-399.99999999,0.000182,2]
[424175185,1780627839000,-777.48214678,0.000182,2]
[424175178,1780627839000,-399.99999999,0.00018,2]
[424175190,1780627839000,-2016.58794916,0.000184,2]
[424175193,1780627839000,-777.48214678,0.000184,2]
[424175201,1780627839000,-152.32,0.000185,2]
[424175197,1780627839000,-1865.36488656,0.00018414,2]
[424175194,1780627839000,-399.99999999,0.000184,2]
[424175196,1780627839000,-763.9,0.0001841,2]
[424175198,1780627839000,-698.65233711,0.000185,2]
[424175200,1780627839000,-777.48214678,0.000185,2]
[424175199,1780627839000,-164.92121343,0.000185,2]
[424175182,1780627839000,-2016.58794916,0.000182,2]
[424175174,1780627839000,-2016.58794916,0.00018,2]
[424175151,1780627839000,-1500.0,0.00015126,2]
[424175175,1780627839000,-698.65233711,0.00018,2]
[424175172,1780627839000,-399.99999999,0.000178,2]
[424175156,1780627839000,-166.66,0.00015853,2]
[424175158,1780627839000,-2000.0,0.00016104,2]
[424175160,1780627839000,-1613.0535,0.00016222,2]
[424175159,1780627839000,-8269.73,0.00016116,2]
[424175164,1780627839000,-230.52,0.00016438,2]
[424175165,1780627839000,-871.88,0.00016438,2]
[424175167,1780627839000,-161.15,0.00016767,2]
[424175157,1780627839000,-300.0,0.00016,2]
[424175152,1780627839000,-166.66,0.0001539,2]
[424175163,1780627839000,-1129.18532635,0.0001637,2]
[424175162,1780627839000,-166.66,0.00016315,2]
[424175169,1780627839000,-629.1069766,0.00016994,2]
[424175168,1780627839000,-1672.7364795,0.0001677,2]
[424175177,1780627839000,-777.48214678,0.00018,2]
[424175170,1780627839000,-1734.62772924,0.00017318,2]
[424175176,1780627839000,-164.92121343,0.00018,2]
[424175171,1780627839000,-2016.58794916,0.000178,2]
[424175173,1780627839000,-1798.80895522,0.00017866,2]
[424175166,1780627839000,-168.19,0.00016712,2]
[424175229,1780627840000,-1454.0,0.0002,2]
[424175230,1780627840000,-302.0,0.0002,2]
[424175220,1780627840000,-194.254931,0.00019796,2]
[424175222,1780627840000,-651.34447119,0.0002,2]
[424175224,1780627840000,-858.0,0.0002,2]
[424175232,1780627840000,-240.0,0.0002,2]
[424175225,1780627840000,-215.0,0.0002,2]
[424175237,1780627840000,-14404.06,0.0002,2]
[424175235,1780627840000,-472.0,0.0002,2]
[424175231,1780627840000,-400.0,0.0002,2]
[424175233,1780627840000,-1088.0,0.0002,2]
[424175236,1780627840000,-219.0,0.0002,2]
[424175239,1780627840000,-200.0,0.00020058,2]
[424175238,1780627840000,-2080.17592889,0.00020058,2]
[424175240,1780627840000,-151.0,0.00020058,2]
[424175241,1780627840000,-151.0,0.00020058,2]
[424175226,1780627840000,-1118.0,0.0002,2]
[424175234,1780627840000,-410.0,0.0002,2]
[424175227,1780627840000,-1037.0,0.0002,2]
[424175211,1780627840000,-2016.58794916,0.000193,2]
[424175219,1780627840000,-276.559387,0.00019698,2]
[424175202,1780627840000,-2016.58794916,0.000186,2]
[424175206,1780627840000,-777.48214678,0.000187,2]
[424175203,1780627840000,-399.99999999,0.000186,2]
[424175204,1780627840000,-2016.58794916,0.000187,2]
[424175209,1780627840000,-786.75,0.00019,2]
[424175208,1780627840000,-1934.38338736,0.00018962,2]
[424175205,1780627840000,-698.65233711,0.000187,2]
[424175207,1780627840000,-2016.58794916,0.000189,2]
[424175223,1780627840000,-315.0,0.0002,2]
[424175214,1780627840000,-629.1069766,0.00019548,2]
[424175210,1780627840000,-2016.58794916,0.000191,2]
[424175217,1780627840000,-179.221446,0.000196,2]
[424175215,1780627840000,-160.0,0.000196,2]
[424175218,1780627840000,-163.443061,0.000196,2]
[424175213,1780627840000,-2005.9555727,0.0001951,2]
[424175216,1780627840000,-169.610723,0.000196,2]
[424175212,1780627840000,-2016.58794916,0.000195,2]
[424175221,1780627840000,-500.0,0.00019999,2]
[424175243,1780627840000,-151.0,0.00020058,2]
[424175247,1780627840000,-151.0,0.00020058,2]
[424175228,1780627840000,-236.0,0.0002,2]
[424175242,1780627840000,-151.0,0.00020058,2]
[424175268,1780627840000,-152.0,0.00020058,2]
[424175270,1780627840000,-151.0,0.00020058,2]
[424175277,1780627840000,-152.0,0.00020058,2]
[424175273,1780627840000,-151.0,0.00020058,2]
[424175272,1780627840000,-500.0,0.00020058,2]
[424175275,1780627840000,-500.0,0.00020058,2]
[424175269,1780627840000,-500.0,0.00020058,2]
[424175271,1780627840000,-152.0,0.00020058,2]
[424175276,1780627840000,-151.0,0.00020058,2]
[424175278,1780627840000,-500.0,0.00020058,2]
[424175279,1780627840000,-151.0,0.00020058,2]
[424175280,1780627840000,-152.0,0.00020058,2]
[424175282,1780627840000,-152.0,0.00020058,2]
[424175283,1780627840000,-500.0,0.00020058,2]
[424175281,1780627840000,-151.0,0.00020058,2]
[424175285,1780627840000,-152.0,0.00020058,2]
[424175286,1780627840000,-500.0,0.00020058,2]
[424175284,1780627840000,-151.0,0.00020058,2]
[424175244,1780627840000,-151.0,0.00020058,2]
[424175267,1780627840000,-151.0,0.00020058,2]
[424175266,1780627840000,-500.0,0.00020058,2]
[424175274,1780627840000,-152.0,0.00020058,2]
[424175262,1780627840000,-152.0,0.00020058,2]
[424175245,1780627840000,-151.0,0.00020058,2]
[424175260,1780627840000,-500.0,0.00020058,2]
[424175246,1780627840000,-151.0,0.00020058,2]
[424175251,1780627840000,-500.0,0.00020058,2]
[424175252,1780627840000,-152.0,0.00020058,2]
[424175254,1780627840000,-500.0,0.00020058,2]
[424175249,1780627840000,-693.39197629,0.00020058,2]
[424175248,1780627840000,-151.0,0.00020058,2]
[424175250,1780627840000,-151.0,0.00020058,2]
[424175255,1780627840000,-151.0,0.00020058,2]
[424175253,1780627840000,-151.0,0.00020058,2]
[424175256,1780627840000,-693.39197629,0.00020058,2]
[424175263,1780627840000,-500.0,0.00020058,2]
[424175258,1780627840000,-152.0,0.00020058,2]
[424175261,1780627840000,-151.0,0.00020058,2]
[424175265,1780627840000,-152.0,0.00020058,2]
[424175264,1780627840000,-151.0,0.00020058,2]
[424175259,1780627840000,-151.0,0.00020058,2]
[424175257,1780627840000,-500.0,0.00020058,2]
[424175323,1780627841000,-500.0,0.00020606,2]
[424175318,1780627841000,-151.0,0.00020553,2]
[424175315,1780627841000,-21873.0,0.00020548,2]
[424175320,1780627841000,-231.287349,0.0002058,2]
[424175324,1780627841000,-997.16350561,0.00020608,2]
[424175326,1780627841000,-168.957256,0.00020683,2]
[424175321,1780627841000,-651.34447119,0.000206,2]
[424175325,1780627841000,-151.0,0.00020608,2]
[424175319,1780627841000,-344.824784,0.0002058,2]
[424175311,1780627841000,-894.19061325,0.00020443,2]
[424175317,1780627841000,-961.58486558,0.00020553,2]
[424175336,1780627841000,-215.0,0.00021,2]
[424175327,1780627841000,-651.34447119,0.000208,2]
[424175329,1780627841000,-152.0,0.0002094,30]
[424175337,1780627841000,-1118.0,0.00021,2]
[424175328,1780627841000,-1129.18532635,0.00020876,2]
[424175330,1780627841000,-152.0,0.0002094,30]
[424175333,1780627841000,-200.0,0.00021,2]
[424175335,1780627841000,-858.0,0.00021,2]
[424175332,1780627841000,-152.0,0.0002098,30]
[424175312,1780627841000,-151.0,0.00020443,2]
[424175331,1780627841000,-152.0,0.0002098,30]
[424175322,1780627841000,-2157.14243826,0.00020606,2]
[424175314,1780627841000,-151.0,0.00020498,2]
[424175289,1780627841000,-719.04747942,0.00020113,2]
[424175310,1780627841000,-651.34447119,0.000204,2]
[424175334,1780627841000,-315.0,0.00021,2]
[424175287,1780627841000,-150.0,0.000201,7]
[424175288,1780627841000,-151.0,0.00020113,2]
[424175290,1780627841000,-719.04747942,0.00020113,2]
[424175291,1780627841000,-151.0,0.00020168,2]
[424175292,1780627841000,-745.65223615,0.00020168,2]
[424175293,1780627841000,-745.65223615,0.00020168,2]
[424175294,1780627841000,-651.34447119,0.000202,2]
[424175295,1780627841000,-160.0,0.00020202,2]
[424175296,1780627841000,-248.887307,0.00020202,2]
[424175313,1780627841000,-927.27566594,0.00020498,2]
[424175297,1780627841000,-337.774614,0.00020202,2]
[424175300,1780627841000,-773.24136889,0.00020223,2]
[424175302,1780627841000,-151.0,0.00020278,2]
[424175298,1780627841000,-773.24136889,0.00020223,2]
[424175304,1780627841000,-831.51979762,0.00020333,2]
[424175303,1780627841000,-801.85129954,0.00020278,2]
[424175305,1780627841000,-151.0,0.00020333,2]
[424175307,1780627841000,-763.9,0.00020381,2]
[424175306,1780627841000,-785.47129768,0.00020333,2]
[424175308,1780627841000,-862.28603014,0.00020388,2]
[424175309,1780627841000,-151.0,0.00020388,2]
[424175301,1780627841000,-801.85129954,0.00020278,2]
[424175340,1780627841000,-1454.0,0.00021,2]
[424175299,1780627841000,-151.0,0.00020223,2]
[424175341,1780627841000,-302.0,0.00021,2]
[424175369,1780627841000,-2098.1,0.00022,2]
[424175380,1780627841000,-1429.18,0.00022466,2]
[424175379,1780627841000,-1865.39,0.00022466,2]
[424175370,1780627841000,-629.1069766,0.00022101,2]
[424175368,1780627841000,-219.0,0.00022,2]
[424175371,1780627841000,-2405.55389863,0.0002225,2]
[424175372,1780627841000,-763.9,0.00022353,2]
[424175377,1780627841000,-202.03871322,0.00022407,2]
[424175375,1780627841000,-202.03871325,0.00022407,2]
[424175389,1780627841000,-236.0,0.00023,2]
[424175374,1780627841000,-427.24086963,0.00022407,2]
[424175373,1780627841000,-427.24086963,0.00022407,2]
[424175376,1780627841000,-202.03871322,0.00022407,2]
[424175381,1780627841000,-179.308887,0.0002254,14]
[424175385,1780627841000,-858.0,0.00023,2]
[424175383,1780627841000,-2494.55939288,0.00022798,2]
[424175384,1780627841000,-315.0,0.00023,2]
[424175382,1780627841000,-179.958987,0.00022765,14]
[424175388,1780627841000,-1037.0,0.00023,2]
[424175387,1780627841000,-1118.0,0.00023,2]
[424175386,1780627841000,-215.0,0.00023,2]
[424175390,1780627841000,-1454.0,0.00023,2]
[424175346,1780627841000,-219.0,0.00021,2]
[424175365,1780627841000,-1088.0,0.00022,2]
[424175367,1780627841000,-472.0,0.00022,2]
[424175378,1780627841000,-963.12,0.00022466,2]
[424175363,1780627841000,-450.0,0.00022,2]
[424175366,1780627841000,-410.0,0.00022,2]
[424175338,1780627841000,-1037.0,0.00021,2]
[424175339,1780627841000,-236.0,0.00021,2]
[424175342,1780627841000,-240.0,0.00021,2]
[424175343,1780627841000,-1088.0,0.00021,2]
[424175344,1780627841000,-410.0,0.00021,2]
[424175345,1780627841000,-472.0,0.00021,2]
[424175348,1780627841000,-500.0,0.00021154,2]
[424175349,1780627841000,-161.15,0.00021205,2]
[424175351,1780627841000,-2319.72410669,0.00021702,2]
[424175352,1780627841000,-642.41782865,0.00021702,2]
[424175350,1780627841000,-339.391782,0.00021212,2]